[Event "Czech Extraliga 2024-25"]
[Site "Czechia"]
[Date "2024.11.02"]
[Round "1.6"]
[White "Biolek, Richard Jr."]
[Black "Bartel, Mateusz"]
[Result "1/2-1/2"]
[ECO "B35"]
[WhiteElo "2414"]
[BlackElo "2613"]
[Annotator "TA"]
[PlyCount "94"]
[EventDate "2024.09.12"]
[EventType "team-tourn"]
[EventCountry "CZE"]
[SourceTitle "playchess.com"]
[Source "ChessBase"]
[SourceQuality "1"]
[TimeControl "40/5400+30:1800+30"]

{[%evp 14,94,12,18,32,24,22,17,18,0,6,0,25,0,0,0,0,0,0,0,0,0,0,-17,-17,-29,-28,-24,-24,-24,-22,-31,-14,-14,-14,-14,-14,-14,-12,-48,-31,-88,-14,-14,-14,-14,-14,-14,-14,-43,-14,-14,-10,-10,-10,-10,-7,-13,-8,-8,-8,-8,-8,-8,0,-30,-31,-54,-61,-60,-55,-53,-45,-45,-45,-64,-41,-41,0,0,0,0,0]} 1. e4 {[%emt 1:31:00]} c5 {[%emt 0:00:17]} 2. Nf3 {[%emt 0:00:00]} Nc6 {[%emt 0:00:04]} 3. d4 {[%emt 0:00:00]} cxd4 {[%emt 0:00:36]} 4. Nxd4 {[%emt 0:00:00]} g6 {[%emt 0:00:13]} 5. Nc3 {[%emt 0:00:00]} Bg7 {[%emt 0:00:03]} 6. Be3 {[%emt 0:00:00]} Nf6 {[%emt 0:00:12]} 7. Bc4 {[%emt 0:00:00]} O-O {[%emt 0:00:08]} 8. Bb3 {[%emt 0:00:00]} Re8 {[%emt 0:00:09]} 9. Nxc6 {[%emt 0:00:00]} dxc6 {[%emt 0:01:16]} 10. Qxd8 {[%emt 0:00:00]} Rxd8 {[%emt 0:00:04]} 11. f3 {[%emt 0:00:00]} b5 {[%emt 0:09:59]} 12. a3 {[%emt 0:00:00]} a5 {[%emt 0:01:01][%cal Ba7a5,Ba5a4][%mdl 32]} 13. Ne2 {[%emt 0:00:00]} a4 {[%emt 0:01:23]} 14. Ba2 {[%emt 0:00:00]} Ne8 {[%emt 0:02:22]} 15. c3 {[%emt 0:00:00]} Be6 {[%emt 0:00:40]} 16. Bxe6 {[%emt 0:00:00]} fxe6 {[%emt 0:00:03]} 17. Nd4 {[%emt 0:00:00]} Bxd4 {[%emt 0:00:28]} 18. Bxd4 {[%emt 0:00:00]} Nd6 {[%emt 0:00:22]} 19. O-O-O {[%emt 0:00:00]} Nc4 {[%emt 0:00:32]} 20. Bc5 {[%emt 0:00:00] White is weak on the light squares} Kf7 {[%emt 0:00:24]} 21. Kc2 {[%emt 0:00:00]} e5 {[%emt 0:00:33]} 22. Rhe1 {[%emt 0:00:00]} Ke6 {[%emt 0:00:14]} 23. Rxd8 {[%emt 0:00:00]} Rxd8 $11 {[%emt 0:00:06][%mdl 4096] Endgame. KRB-KRN} 24. Be3 {[%emt 0:00:00] [#] Prevents Rd2+} g5 $1 {[%emt 0:02:59]} 25. h3 {[%emt 0:00:00]} (25. Bxg5 $2 {loses.} Rg8 26. h4 h6 $19) (25. Bc1 g4) 25... Rg8 {[%emt 0:01:15]} 26. Bc1 {[%emt 0:00:00]} h5 {[%emt 0:00:08]} 27. Kd3 {[%emt 0:03:42]} (27. Rf1 $15) 27... Kf6 {[%emt 0:01:07]} ({Better is} 27... g4 $17 {...gxh3 would now be deadly.} 28. fxg4 hxg4) 28. Rf1 {[%emt 0:01:45]} Nd6 {[%emt 0:03:02]} 29. Ke2 {[%emt 0:03:35]} Nf7 {[%emt 0:07:15]} 30. Rd1 {[%emt 0:00:10]} Ke6 {[%emt 0:00:25]} 31. Rd3 {[%emt 0:02:15]} Nd6 {[%emt 0:03:16]} 32. Rd1 {[%emt 0:02:11]} g4 {[%emt 0:03:15] [#] Strongly threatening ...gxh3.} 33. Kf2 {[%emt 0:00:17]} Rf8 {[%emt 0:06:53] And now ...gxf3 would win.} 34. Re1 {[%emt 0:01:55]} c5 {[%emt 0:01:38]} 35. hxg4 {[%emt 0:00:23]} hxg4 {[%emt 0:00:34]} 36. Kg3 {[%emt 0:00:02]} gxf3 {[%emt 0:00:41]} 37. gxf3 {[%emt 0:00:02]} Rg8+ {[%emt 0:09:23]} 38. Kf2 {[%emt 0:00:02]} Rh8 {[%emt 0:00:05]} 39. Kg3 {[%emt 0:01:45] Prevents Rh2} Kd7 {[%emt 0:00:26]} 40. Rd1 {[%emt 0:00:26]} Kc6 {[%emt 0:00:07]} 41. Kg2 {[%emt 0:05:37]} Nc4 {[%emt 0:01:30]} 42. Rd3 {[%emt 0:00:15]} e6 {[%emt 0:04:17]} 43. Kg1 {[%emt 0:02:58]} Rb8 {[%emt 0:12:20]} 44. Kf2 {[%emt 0:02:47]} Nd6 {[%emt 0:01:21]} 45. Kf1 {[%emt 0:08:38]} b4 {[%emt 0:24:30]} 46. cxb4 {[%emt 0:00:05]} cxb4 {[%emt 0:00:05]} 47. b3 {[%emt 0:01:03] Dodges Nc4} bxa3 {[%emt 0:06:20] Weighted Error Value: White=0.07 (flawless) /Black=0.08 (flawless) .  Mistake:       	White=1     	Black=1      Inaccurate:     	White=3     	Black=2      OK:         	White=20    	Black=18} 1/2-1/2

[Event "Czech Extraliga 2024-25"]
[Site "Czechia"]
[Date "2024.11.02"]
[Round "1.6"]
[White "Cuhra, Martin"]
[Black "Mladek, Richard"]
[Result "1-0"]
[ECO "B36"]
[WhiteElo "2277"]
[BlackElo "2387"]
[Annotator "RC"]
[PlyCount "93"]
[EventDate "2024.09.12"]
[EventType "team-tourn"]
[EventCountry "CZE"]
[SourceTitle "playchess.com"]
[Source "ChessBase"]
[SourceQuality "1"]
[TimeControl "40/5400+30:1800+30"]

1. e4 {[%emt 0:00:03]} c5 {[%emt 0:00:47]} 2. Nf3 {[%emt 0:00:12]} Nc6 {[%emt 0:00:06]} 3. d4 {[%emt 0:00:21]} cxd4 {[%emt 0:00:06]} 4. Nxd4 {[%emt 0:00:06]} g6 {[%emt 0:00:15]} 5. c4 {[%emt 0:02:25]} Nf6 {[%emt 0:00:23]} 6. Nc3 {[%emt 0:00:16]} d6 {[%emt 0:00:18]} 7. Be2 {[%emt 0:00:42]} Nxd4 {[%emt 0:00:15]} 8. Qxd4 {[%emt 0:00:07]} Bg7 {[%emt 0:00:04]} 9. Be3 {[%emt 0:01:49]} O-O {[%emt 0:00:14]} 10. Qd2 {[%emt 0:00:17]} a5 {[%emt 0:00:49]} 11. O-O {[%emt 0:02:17]} a4 {[%emt 0:00:40]} 12. Rfd1 {[%emt 0:04:17]} Qa5 {[%emt 0:03:24]} 13. Rac1 {[%emt 0:01:42]} Be6 {[%emt 0:04:30]} 14. f3 {[%emt 0:01:57]} Rfc8 {[%emt 0:02:58]} 15. Nb5 {[%emt 0:05:31]} Nd7 {[%emt 0:10:01]} 16. Qxa5 {[%emt 0:13:44]} Rxa5 {[%emt 0:00:03]} 17. Nd4 {[%emt 0:00:17]} Nc5 {[%emt 0:03:58]} 18. Rb1 {[%emt 0:04:16]} h5 {[%emt 0:05:57]} 19. Bf1 {[%emt 0:01:50]} Raa8 {[%emt 0:03:55]} 20. Rd2 {[%emt 0:07:33]} Kh7 {[%emt 0:03:22]} 21. g3 {[%emt 0:06:15]} Bd7 {[%emt 0:04:39]} 22. Kf2 {[%emt 0:10:55]} Bf6 {[%emt 0:06:35]} 23. Be2 {[%emt 0:08:58]} g5 {[%emt 0:09:06]} 24. h3 {[%emt 0:12:18]} Kg6 {[%emt 0:03:32]} 25. Kg2 {[%emt 0:01:38]} Bc6 {[%emt 0:08:23]} 26. Nxc6 {[%emt 0:03:20]} Rxc6 {[%emt 0:00:29]} 27. f4 {[%emt 0:02:56]} Rh8 {[%emt 0:06:17]} 28. Rf1 {[%emt 0:02:43]} Kg7 {[%emt 0:07:17]} 29. e5 {[%emt 0:00:38]} dxe5 {[%emt 0:00:46]} 30. fxg5 {[%emt 0:01:14]} Bxg5 {[%emt 0:00:08]} 31. Bxg5 {[%emt 0:00:06]} Ne4 {[%emt 0:00:04]} 32. Be3 {[%emt 0:01:11]} Rg6 {[%emt 0:02:41]} 33. Rf3 {[%emt 0:01:21]} Nxd2 {[%emt 0:00:28]} 34. Bxd2 {[%emt 0:00:11]} Rd6 {[%emt 0:04:31]} 35. Bb4 {[%emt 0:01:30]} Rd7 {[%emt 0:00:28]} 36. Bc3 {[%emt 0:00:29]} f6 {[%emt 0:00:04]} 37. a3 {[%emt 0:01:24]} h4 {[%emt 0:01:03]} 38. g4 {[%emt 0:00:27]} Rhd8 {[%emt 0:01:18]} 39. Kf2 {[%emt 0:01:01]} Kg6 {[%emt 0:00:20]} 40. Ke3 {[%emt 0:00:49]} e6 {[%emt 0:00:58]} 41. Rf1 {[%emt 0:30:44]} b6 {[%emt 0:32:10]} 42. Rg1 {[%emt 0:00:00]} Kg5 {[%emt 0:00:00]} 43. Rc1 {[%emt 0:00:00]} Rd6 {[%emt 0:00:00]} 44. Bb4 {[%emt 0:00:00]} Rd4 {[%emt 0:00:00]} 45. c5 {[%emt 0:00:00]} bxc5 {[%emt 0:00:00]} 46. Rxc5 {[%emt 0:00:00]} Rf4 {[%emt 0:00:00]} 47. Rxe5+ {[%emt 0:00:00]} 1-0

[Event "Czech Extraliga 2024-25"]
[Site "Czechia"]
[Date "2024.11.02"]
[Round "1.6"]
[White "Klement, Lukas"]
[Black "Kusa, Jakub"]
[Result "0-1"]
[ECO "D02"]
[WhiteElo "2271"]
[BlackElo "2401"]
[Annotator "TA"]
[PlyCount "88"]
[EventDate "2024.09.12"]
[EventType "team-tourn"]
[EventCountry "CZE"]
[SourceTitle "playchess.com"]
[Source "ChessBase"]
[SourceQuality "1"]
[TimeControl "40/5400+30:1800+30"]

{[%evp 9,87,29,22,23,60,45,38,47,63,49,62,72,75,78,80,82,68,76,85,81,91,87,102,33,21,30,74,17,29,0,-2,-36,-38,-39,-44,-29,-25,-42,-21,-41,-6,-18,-16,-14,-16,0,-27,-83,-54,-41,0,-14,-12,-25,-21,-97,-88,-386,-387,-368,-380,-408,-384,-913,-899,-881,-854,-29991,-1218,-29992,-29993,-29995,-29991,-29993,-29994,-29994,-29995,-29995,-29994,-29995]} 1. Nf3 {[%emt 0:00:04]} d5 {[%emt 0:00:25]} 2. d4 {[%emt 0:00:55]} e6 {[%emt 0:00:17]} 3. g3 {[%emt 0:01:27]} Nf6 {[%emt 0:00:16]} 4. Bg2 {[%emt 0:00:05]} h6 {[%emt 0:10:08]} 5. O-O {[%emt 0:01:46]} Bd6 {[%emt 0:00:34] [#]} 6. c4 $1 {[%emt 0:01:07]} Nc6 {[%emt 0:02:10] Prevents Ne5.} (6... O-O 7. b3) 7. b3 {[%emt 0:09:03]} O-O {[%emt 0:01:44]} 8. Bb2 {[%emt 0:03:34] White is slightly better.} Re8 {[%emt 0:02:34]} 9. Ne5 {[%emt 0:12:41]} Ne7 {[%emt 0:25:30]} 10. Nc3 {[%emt 0:13:17]} b6 {[%emt 0:07:26]} 11. Nd3 {[%emt 0:06:48] c5 is the strong threat.} c6 {[%emt 0:02:59]} 12. e4 {[%emt 0:03:45]} dxe4 {[%emt 0:05:46]} 13. Nxe4 {[%emt 0:00:19]} Nxe4 {[%emt 0:00:07]} 14. Bxe4 {[%emt 0:00:06]} Bb7 {[%emt 0:03:05]} 15. Qh5 {[%emt 0:04:50]} Nf5 {[%emt 0:07:40]} 16. Ne5 {[%emt 0:03:56]} (16. Rad1 $16) 16... Bxe5 $14 {[%emt 0:05:41]} 17. dxe5 {[%emt 0:01:39][%cal Oa1d1]} Qc7 $1 {[%emt 0:02:23]} 18. Qf3 {[%emt 0:09:20]} (18. g4 $1 $16 {[%cal Rg4f5]} Ne7 19. c5) 18... Rab8 $11 {[%emt 0:00:55]} 19. c5 {[%emt 0:01:20]} bxc5 {[%emt 0:00:31][%cal Oc5c4]} 20. Rfe1 {[%emt 0:07:00] [#]} c4 $1 {[%emt 0:04:12]} 21. bxc4 {[%emt 0:05:02][%cal Oc4c5]} c5 {[%emt 0:00:19] Threatens to win with ...Bxe4.} 22. Bc3 {[%emt 0:00:53]} Red8 {[%emt 0:02:55]} 23. Rad1 {[%emt 0:01:48] Black must now prevent Rxd8+.} Bxe4 {[%emt 0:01:58]} 24. Qxe4 {[%emt 0:00:20]} h5 {[%emt 0:01:19]} 25. h3 {[%emt 0:03:54]} Rd7 {[%emt 0:02:38]} 26. g4 {[%emt 0:08:31]} hxg4 {[%emt 0:01:01]} 27. hxg4 {[%emt 0:00:00]} Nh4 {[%emt 0:00:44]} 28. Kh2 {[%emt 0:00:00]} (28. Kf1 $11) 28... Rbd8 {[%emt 0:01:42]} 29. Rxd7 {[%emt 0:00:00]} Qxd7 {[%emt 0:00:33]} 30. Ba5 {[%emt 0:00:24]} Rb8 {[%emt 0:00:53]} 31. Bc3 {[%emt 0:00:15] Prevents Rb2} Qa4 {[%emt 0:01:13]} 32. Re2 {[%emt 0:01:04]} (32. Kg3 $11 {remains equal.} Ng6 33. Qe2) 32... Qd1 $17 {[%emt 0:02:02]} 33. Be1 $2 {[%emt 0:00:32][%mdl 8192] Now White is beyond hope.} (33. Ba5 $17) 33... Rd8 $1 $19 {[%emt 0:01:46] Strongly threatening ...Rd4.} 34. Kg3 {[%emt 0:00:51] [#]} g5 {[%emt 0:01:15] aiming for ...Rd3+.} (34... Rd4 $2 35. Qc2 Qxc2 36. Rxc2 $19) 35. f3 {[%emt 0:00:32]} Rd3 {[%emt 0:01:27] Against Qe3} 36. Re3 {[%emt 0:00:05]} (36. Rf2) 36... Rd4 {[%emt 0:00:49]} 37. Qa8+ {[%emt 0:01:14]} Kg7 {[%emt 0:00:05] ( -> ...Qc2)} 38. Qxa7 {[%emt 0:00:26] [#]} Nxf3 $1 {[%emt 0:01:14][%mdl 512]} 39. Bf2 {[%emt 0:00:26]} (39. Qe7 Rf4) 39... Nh4 {[%emt 0:00:34] Black mates.} 40. Kh2 {[%emt 0:00:38]} Rxg4 {[%emt 0:01:08]} 41. Rg3 {[%emt 0:03:32]} Rxg3 {[%emt 0:03:51]} 42. Bxg3 {[%emt 0:00:02]} Qe2+ {[%emt 0:00:48]} 43. Kh3 {[%emt 0:00:16]} Qg2+ {[%emt 0:01:21]} 44. Kg4 {[%emt 0:00:06]} Qf3+ {[%emt 0:26:32] Weighted Error Value: White=0.72/Black=0.14 (very precise) .  Loses game:     	White=1     	---        Mistake:       	White=5     	---        Inaccurate:     	White=2     	Black=4      OK:         	White=15    	Black=12     Best:        	---       	Black=2      Strong:       	---       	Black=2} 0-1

[Event "Czech Extraliga 2024-25"]
[Site "Czechia"]
[Date "2024.11.02"]
[Round "1.7"]
[White "Kriebel, Tadeas"]
[Black "Rasik, Vitezslav"]
[Result "1-0"]
[ECO "B06"]
[WhiteElo "2512"]
[BlackElo "2420"]
[Annotator "TA"]
[PlyCount "125"]
[EventDate "2024.09.12"]
[EventType "team-tourn"]
[EventCountry "CZE"]
[SourceTitle "playchess.com"]
[Source "ChessBase"]
[SourceQuality "1"]
[TimeControl "40/5400+30:1800+30"]

{[%evp 42,125,265,258,321,301,300,215,209,204,371,366,365,365,691,669,671,729,715,700,854,522,529,523,534,503,525,523,503,464,525,508,510,493,587,572,1610,614,635,566,591,591,589,547,634,634,686,638,645,0,702,689,894,768,927,830,888,857,970,963,1040,989,1134,1158,1370,1209,1167,865,1273,1178,1582,1604,2709,1572,1663,1515,2694,2182,29976,29977,29985,29986,29986,29987,29990,29986]} 1. e4 {[%emt 0:00:06]} d6 {[%emt 0:00:21]} 2. d4 {[%emt 0:00:12]} g6 {[%emt 0:00:07]} 3. Nc3 {[%emt 0:00:21]} Bg7 {[%emt 0:00:08]} 4. Be3 {[%emt 0:00:36]} a6 {[%emt 0:03:50]} 5. f4 {[%emt 0:14:02]} b5 {[%emt 0:00:58]} 6. e5 {[%emt 0:00:22] B06: Modern Defence.} Bb7 {[%emt 0:04:22]} 7. Nf3 {[%emt 0:02:09]} Nd7 {[%emt 0:10:27]} 8. a3 {[%emt 0:09:28]} c5 {[%emt 0:12:27]} 9. e6 {[%emt 0:03:50]} fxe6 {[%emt 0:01:06]} 10. Ng5 {[%emt 0:00:13]} Bxd4 {[%emt 0:04:44]} 11. Bxd4 {[%emt 0:05:22]} cxd4 {[%emt 0:00:11]} 12. Qxd4 $146 {[%emt 0:20:22]} ({Predecessor:} 12. Nxe6 Qb6 13. Qxd4 Qxd4 14. Nxd4 Ngf6 15. Rg1 Rc8 16. g3 e5 17. fxe5 dxe5 18. Nb3 {0-1 Ciemniak,R (2390)-Urban,K (2463) POL-chT 55th 1999 (1)}) 12... e5 {[%emt 0:07:10]} 13. fxe5 {[%emt 0:02:29]} dxe5 {[%emt 0:06:39]} 14. Qg4 {[%emt 0:01:16]} Qb6 {[%emt 0:02:50]} 15. Qh3 {[%emt 0:05:07]} Ngf6 {[%emt 0:10:13]} 16. O-O-O {[%emt 0:00:31]} b4 {[%emt 0:08:27]} 17. Bc4 {[%emt 0:17:29]} bxc3 {[%emt 0:08:23]} 18. Bf7+ {[%emt 0:01:38]} Kd8 {[%emt 0:00:04]} 19. Qxc3 {[%emt 0:00:03]} Qc6 {[%emt 0:03:20]} 20. Qxe5 {[%emt 0:00:51]} Rf8 {[%emt 0:05:48]} 21. Rhe1 {[%emt 0:01:47]} Kc8 {[%emt 0:01:08]} 22. Be6 {[%emt 0:03:51]} (22. Qxe7 Qc5 23. Nxh7 Qxe7 24. Rxe7 Nxh7 $11) 22... Qc7 {[%emt 0:02:40]} 23. Bxd7+ {[%emt 0:02:21]} Nxd7 {[%emt 0:00:05]} 24. Qxc7+ {[%emt 0:00:17]} Kxc7 {[%emt 0:00:01]} 25. Rxe7 {[%emt 0:00:38]} (25. Nxh7 $2 Rfe8 26. Re6 Bxg2 $19) 25... Rfd8 $2 {[%emt 0:06:14]} (25... Bc6 {might work better.}) 26. Ne6+ $18 {[%emt 0:00:10]} ({Weaker is} 26. Nxh7 Kc6 $14) (26. Rxh7 Bxg2 27. Rg7 Kc8 $16) 26... Kc6 {[%emt 0:00:10]} 27. Rxh7 {[%emt 0:02:22]} Nf8 $2 {[%emt 0:01:31]} (27... Re8 28. Rdxd7 Rxe6 29. Rc7+ (29. Rxb7 Re1+ 30. Kd2 Rae8 $18) 29... Kd5 30. Rhd7+ (30. Rxb7 Re1+ 31. Kd2 Rae8 $18) 30... Ke5 31. Rxb7 g5) 28. Nxd8+ $18 {[%emt 0:01:31]} Rxd8 {[%emt 0:00:05]} 29. Rxd8 {[%emt 0:00:06]} Nxh7 {[%emt 0:00:04]} 30. Rg8 {[%emt 0:00:09]} g5 {[%emt 0:00:44]} 31. Rg7 {[%emt 0:00:16]} Nf8 {[%emt 0:00:13]} 32. Rxg5 {[%emt 0:00:05]} Kd6 {[%emt 0:00:24]} 33. g3 {[%emt 0:00:10]} Ne6 {[%emt 0:00:17]} 34. Rg8 {[%emt 0:00:24]} Nd4 {[%emt 0:01:30]} 35. Rg6+ {[%emt 0:00:24]} Ne6 {[%emt 0:00:45]} 36. Kd2 {[%emt 0:00:15]} Be4 {[%emt 0:00:31]} 37. Rh6 {[%emt 0:00:10]} Ke5 {[%emt 0:00:15]} 38. Rh5+ {[%emt 0:00:11]} Kd4 {[%emt 0:00:45]} 39. b3 {[%emt 0:01:11]} (39. c3+ $142 Kc4 40. b3+ Kxb3 41. Re5) 39... Bd5 {[%emt 0:00:32]} 40. Rh4+ {[%emt 0:00:40]} Be4 {[%emt 0:00:29]} 41. c3+ {[%emt 0:30:09]} Ke5 {[%emt 0:00:33]} 42. Rh5+ {[%emt 0:00:00]} Kd6 {[%emt 0:03:04]} 43. c4 {[%emt 0:00:00]} Bg6 {[%emt 0:02:21]} 44. Rh6 {[%emt 0:00:00]} Bf5 {[%emt 0:03:17]} 45. Rh5 {[%emt 0:00:00]} Bg6 $1 {[%emt 0:00:48]} 46. Rd5+ {[%emt 0:00:00]} Kc6 {[%emt 0:01:20]} 47. b4 {[%emt 0:00:00]} Nc7 {[%emt 0:01:42]} 48. Rg5 {[%emt 0:00:00]} Bb1 {[%emt 0:00:38]} 49. Kc3 {[%emt 0:00:00]} Kd6 {[%emt 0:00:50]} 50. h4 {[%emt 0:00:00]} Be4 {[%emt 0:00:32]} 51. a4 {[%emt 0:00:00]} Ne6 {[%emt 0:01:22]} 52. Ra5 {[%emt 0:00:00]} Bb7 {[%emt 0:02:16]} 53. h5 {[%emt 0:00:00]} Ke7 {[%emt 0:02:39]} 54. Rf5 {[%emt 0:00:00]} Be4 {[%emt 0:02:30]} 55. Re5 {[%emt 0:00:00]} Bb1 {[%emt 0:00:49]} 56. Ra5 {[%emt 0:00:00]} Nc7 {[%emt 0:01:19]} 57. g4 {[%emt 0:00:00]} Ke6 {[%emt 0:01:33]} 58. Kd4 {[%emt 0:00:00]} Bc2 {[%emt 0:01:24]} 59. b5 {[%emt 0:00:00]} axb5 {[%emt 0:03:08]} 60. axb5 {[%emt 0:00:00]} Kd6 {[%emt 0:02:54]} 61. c5+ {[%emt 0:00:00]} Kd7 {[%emt 0:00:23]} 62. Ke5 {[%emt 0:00:00]} Bd3 {[%emt 0:01:20]} 63. h6 {[%emt 0:00:00]} 1-0

[Event "Czech Extraliga 2024-25"]
[Site "Czechia"]
[Date "2024.11.02"]
[Round "1.7"]
[White "Jirovsky, Milos"]
[Black "Pulpan, Jakub"]
[Result "1/2-1/2"]
[ECO "D35"]
[WhiteElo "2430"]
[BlackElo "2398"]
[Annotator "RC"]
[PlyCount "23"]
[EventDate "2024.09.12"]
[EventType "team-tourn"]
[EventCountry "CZE"]
[SourceTitle "playchess.com"]
[Source "ChessBase"]
[SourceQuality "1"]
[TimeControl "40/5400+30:1800+30"]

1. Nf3 {[%emt 0:00:05]} d5 {[%emt 0:00:24]} 2. d4 {[%emt 0:00:30]} Nf6 {[%emt 0:00:35]} 3. c4 {[%emt 0:00:50]} e6 {[%emt 0:00:17]} 4. cxd5 {[%emt 0:02:53]} exd5 {[%emt 0:00:20]} 5. Nc3 {[%emt 0:00:20]} c6 {[%emt 0:03:36]} 6. Bg5 {[%emt 0:00:44]} Be7 {[%emt 0:06:35]} 7. e3 {[%emt 0:08:29]} Bf5 {[%emt 0:00:35]} 8. Bd3 {[%emt 0:06:18]} Bxd3 {[%emt 0:01:54]} 9. Qxd3 {[%emt 0:00:03]} Nbd7 {[%emt 0:01:57]} 10. O-O {[%emt 0:01:29]} O-O {[%emt 0:00:25]} 11. Rab1 {[%emt 0:07:53]} a5 {[%emt 0:04:29]} 12. Rfc1 {[%emt 0:00:10]} 1/2-1/2

[Event "Czech Extraliga 2024-25"]
[Site "Czechia"]
[Date "2024.11.02"]
[Round "1.7"]
[White "Bures, Jaroslav"]
[Black "Hollan, Petr"]
[Result "1-0"]
[ECO "B33"]
[WhiteElo "2405"]
[BlackElo "2251"]
[Annotator "RC"]
[PlyCount "91"]
[EventDate "2024.09.12"]
[EventType "team-tourn"]
[EventCountry "CZE"]
[SourceTitle "playchess.com"]
[Source "ChessBase"]
[SourceQuality "1"]
[TimeControl "40/5400+30:1800+30"]

1. e4 {[%emt 0:00:35]} c5 {[%emt 0:00:12]} 2. Nf3 {[%emt 0:00:08]} Nc6 {[%emt 0:00:04]} 3. d4 {[%emt 0:00:17]} cxd4 {[%emt 0:00:05]} 4. Nxd4 {[%emt 0:00:04]} Nf6 {[%emt 0:00:04]} 5. Nc3 {[%emt 0:00:04]} e5 {[%emt 0:00:32]} 6. Ndb5 {[%emt 0:00:03]} d6 {[%emt 0:00:05]} 7. Nd5 {[%emt 0:00:05]} Nxd5 {[%emt 0:00:05]} 8. exd5 {[%emt 0:00:03]} Nb8 {[%emt 0:00:28]} 9. a4 {[%emt 0:00:04]} Be7 {[%emt 0:00:20]} 10. b4 {[%emt 0:00:02]} O-O {[%emt 0:01:28]} 11. a5 {[%emt 0:00:07]} Nd7 {[%emt 0:03:08]} 12. c4 {[%emt 0:07:08]} a6 {[%emt 0:00:46]} 13. Nc3 {[%emt 0:00:07]} f5 {[%emt 0:03:48]} 14. Be2 {[%emt 0:02:10]} e4 {[%emt 0:10:32]} 15. Ra3 {[%emt 0:05:25]} b6 {[%emt 0:14:39]} 16. O-O {[%emt 0:07:23]} bxa5 {[%emt 0:00:40]} 17. Rxa5 {[%emt 0:00:27]} Rb8 {[%emt 0:00:43]} 18. Qa4 {[%emt 0:04:46]} Qb6 {[%emt 0:07:14]} 19. Ba3 {[%emt 0:26:41]} Qd4 {[%emt 0:07:06]} 20. Qc2 {[%emt 0:00:05]} Bd8 {[%emt 0:19:54]} 21. Rd1 {[%emt 0:00:03]} Qe5 {[%emt 0:01:09]} 22. Ra4 {[%emt 0:06:16]} e3 {[%emt 0:10:25]} 23. f3 {[%emt 0:05:02]} Bh4 {[%emt 0:01:13]} 24. Bf1 {[%emt 0:03:28]} Bf2+ {[%emt 0:17:50]} 25. Kh1 Rf6 {[%emt 0:00:00]} 26. h3 {[%emt 0:00:01]} Rh6 {[%emt 0:00:00]} 27. Ne2 {[%emt 0:00:02]} Nf6 {[%emt 0:00:00]} 28. Bb2 {[%emt 0:01:41]} Qe8 {[%emt 0:00:00]} 29. c5 {[%emt 0:07:07]} dxc5 {[%emt 0:01:08]} 30. Bxf6 {[%emt 0:00:37]} Rxf6 {[%emt 0:01:14]} 31. bxc5 {[%emt 0:00:01]} Bd7 {[%emt 0:00:34]} 32. c6 {[%emt 0:00:30]} Bxc6 {[%emt 0:00:26]} 33. dxc6 {[%emt 0:00:17]} Qxc6 {[%emt 0:00:11]} 34. Qa2+ {[%emt 0:06:40]} Qe6 {[%emt 0:00:49]} 35. f4 {[%emt 0:05:58]} Qxa2 {[%emt 0:00:15]} 36. Rxa2 {[%emt 0:00:01]} h6 {[%emt 0:00:39]} 37. g3 {[%emt 0:00:38]} Rbb6 {[%emt 0:00:39]} 38. Kg2 {[%emt 0:00:49]} Rfd6 {[%emt 0:00:24]} 39. Rxd6 {[%emt 0:01:07]} Rxd6 {[%emt 0:00:02]} 40. Ra5 {[%emt 0:00:04]} g6 {[%emt 0:00:16]} 41. Ra3 {[%emt 0:32:48]} Kg7 {[%emt 0:01:23]} 42. Ra1 {[%emt 0:00:00]} Kh7 {[%emt 0:04:44]} 43. Kf3 {[%emt 0:00:00]} Kg7 {[%emt 0:00:33]} 44. Nc3 {[%emt 0:00:00]} Rc6 {[%emt 0:03:26]} 45. Nd1 {[%emt 0:00:00]} g5 {[%emt 0:01:46]} 46. Nxe3 {[%emt 0:00:00]} 1-0